[Event "***Titled Tuesday 3|2 Blitz"]
[Site "Chess.com"]
[Date "2017.02.07"]
[Round "7"]
[White "Sethu0025"]
[Black "Jospem"]
[Result "0-1"]
[WhiteElo "2548"]
[BlackElo "2537"]
[TimeControl "180+2"]
[EndTime "14:41:41 PST"]
[Termination "Jospem won by resignation"]

1. e4 {[%clk 0:03:02]} 1... e5 {[%clk 0:02:57.6]} 2. Nf3 {[%clk 0:03:02.5]} 2...
Nc6 {[%clk 0:02:59.2]} 3. Bc4 {[%clk 0:03:02.5]} 3... Bc5 {[%clk 0:02:59.6]} 4.
c3 {[%clk 0:03:02.8]} 4... Nf6 {[%clk 0:02:58.5]} 5. d3 {[%clk 0:03:04]} 5... d6
{[%clk 0:02:50.5]} 6. Nbd2 {[%clk 0:03:01.9]} 6... h6 {[%clk 0:02:45]} 7. a4
{[%clk 0:03:01.6]} 7... a6 {[%clk 0:02:45.8]} 8. b4 {[%clk 0:03:02]} 8... Bb6
{[%clk 0:02:45.1]} 9. O-O {[%clk 0:03:02.2]} 9... O-O {[%clk 0:02:45.6]} 10. Bb3
{[%clk 0:03:03]} 10... Be6 {[%clk 0:02:23.7]} 11. Nc4 {[%clk 0:03:02.7]} 11...
Ba7 {[%clk 0:02:24]} 12. Be3 {[%clk 0:03:03.1]} 12... Bxe3 {[%clk 0:02:02.2]}
13. Nxe3 {[%clk 0:03:05]} 13... Qe8 {[%clk 0:01:39.9]} 14. h3 {[%clk 0:03:02]}
14... Nh5 {[%clk 0:01:30.2]} 15. Kh2 {[%clk 0:02:55.1]} 15... Nf4 {[%clk
0:01:29.4]} 16. Bc2 {[%clk 0:02:55]} 16... d5 {[%clk 0:01:04]} 17. g3 {[%clk
0:02:34.8]} 17... dxe4 {[%clk 0:01:02.8]} 18. dxe4 {[%clk 0:02:36.1]} 18... Rd8
{[%clk 0:00:52.4]} 19. Qc1 {[%clk 0:02:36.3]} 19... Nxh3 {[%clk 0:00:28.5]} 20.
Kg2 {[%clk 0:02:36.7]} 20... Ng5 {[%clk 0:00:28.4]} 21. Nxg5 {[%clk 0:02:35.7]}
21... hxg5 {[%clk 0:00:30]} 22. Rh1 {[%clk 0:02:35.8]} 22... Qe7 {[%clk
0:00:21.1]} 23. Nd5 {[%clk 0:02:33.7]} 23... Rxd5 {[%clk 0:00:21.4]} 24. exd5
{[%clk 0:02:31.8]} 24... Bxd5+ {[%clk 0:00:22.7]} 25. f3 {[%clk 0:02:33.1]}
25... g6 {[%clk 0:00:23.3]} 26. Be4 {[%clk 0:02:27.9]} 26... Bxe4 {[%clk
0:00:22.9]} 27. fxe4 {[%clk 0:02:29.8]} 27... Kg7 {[%clk 0:00:22.9]} 28. Qe3
{[%clk 0:02:29.4]} 28... Nd8 {[%clk 0:00:22.6]} 29. Rh2 {[%clk 0:02:25.4]} 29...
Rh8 {[%clk 0:00:22.7]} 30. Rxh8 {[%clk 0:02:23.4]} 30... Kxh8 {[%clk 0:00:23.8]}
31. Rd1 {[%clk 0:02:21.2]} 31... Ne6 {[%clk 0:00:24.6]} 32. Rd5 {[%clk
0:02:21.9]} 32... c6 {[%clk 0:00:17.1]} 33. Rd2 {[%clk 0:02:20.3]} 33... Kg7
{[%clk 0:00:17.8]} 34. a5 {[%clk 0:02:17.6]} 34... g4 {[%clk 0:00:19.1]} 35. Qb6
{[%clk 0:02:10.4]} 35... Qg5 {[%clk 0:00:18.1]} 36. Qf2 {[%clk 0:02:06]} 36...
Qh6 {[%clk 0:00:19.2]} 37. Kf1 {[%clk 0:01:56.2]} 37... Qh1+ {[%clk 0:00:19.2]}
38. Ke2 {[%clk 0:01:55.7]} 38... Ng5 {[%clk 0:00:16.1]} 39. Rd1 {[%clk
0:01:44.7]} 39... Qxe4+ {[%clk 0:00:15.5]} 40. Kd2 {[%clk 0:01:44.3]} 40... Qc4
{[%clk 0:00:12.7]} 41. Qe3 {[%clk 0:01:39]} 41... Nf3+ {[%clk 0:00:13.8]} 42.
Kc1 {[%clk 0:01:38.6]} 42... Qb3 {[%clk 0:00:15]} 43. Qc5 {[%clk 0:01:19.5]}
43... Qa3+ {[%clk 0:00:14.1]} 44. Kc2 {[%clk 0:01:20.6]} 44... Qa2+ {[%clk
0:00:15.4]} 45. Kd3 {[%clk 0:01:21.7]} 45... Qg2 {[%clk 0:00:12.7]} 46. Qe3
{[%clk 0:01:18.2]} 46... Qxg3 {[%clk 0:00:12.7]} 47. Kc4 {[%clk 0:01:18.5]}
47... Qf4+ {[%clk 0:00:12.3]} 48. Qxf4 {[%clk 0:01:18.4]} 48... exf4 {[%clk
0:00:13.8]} 49. Kd3 {[%clk 0:01:15.8]} 49... f5 {[%clk 0:00:15]} 50. Ke2 {[%clk
0:01:16.6]} 50... Ne5 {[%clk 0:00:13.6]} 51. Rd8 {[%clk 0:01:16.2]} 51... g3
{[%clk 0:00:14.9]} 52. Rb8 {[%clk 0:01:14.2]} 52... f3+ {[%clk 0:00:16.1]} 53.
Kf1 {[%clk 0:01:14.4]} 53... g2+ {[%clk 0:00:16.8]} 54. Kf2 {[%clk 0:01:14.5]}
54... Nd3+ {[%clk 0:00:17.7]} 55. Kxf3 {[%clk 0:01:15.3]} 55... g1=Q {[%clk
0:00:17.5]} 56. Rxb7+ {[%clk 0:01:16.4]} 56... Kf6 {[%clk 0:00:18.8]} 57. b5
{[%clk 0:01:17.2]} 57... Qg4+ {[%clk 0:00:19.2]} 0-1

[Event "***Titled Tuesday 3|2 Blitz"]
[Site "Chess.com"]
[Date "2017.02.07"]
[Round "7"]
[White "DryCounty"]
[Black "Rating-Schmating"]
[Result "1-0"]
[WhiteElo "2397"]
[BlackElo "2276"]
[TimeControl "180+2"]
[EndTime "14:41:42 PST"]
[Termination "DryCounty won by resignation"]

1. Nf3 {[%clk 0:03:02]} 1... Nf6 {[%clk 0:03:00]} 2. c4 {[%clk 0:03:00.4]} 2...
c5 {[%clk 0:03:00]} 3. Nc3 {[%clk 0:03:00.1]} 3... b6 {[%clk 0:03:00.8]} 4. d4
{[%clk 0:02:59]} 4... cxd4 {[%clk 0:03:01.8]} 5. Nxd4 {[%clk 0:02:59.2]} 5...
Bb7 {[%clk 0:03:02.9]} 6. f3 {[%clk 0:02:59.3]} 6... e6 {[%clk 0:03:02.2]} 7. e4
{[%clk 0:02:59.5]} 7... d6 {[%clk 0:03:03.7]} 8. Be3 {[%clk 0:02:56.4]} 8... a6
{[%clk 0:03:04.5]} 9. Be2 {[%clk 0:02:55.9]} 9... Nbd7 {[%clk 0:03:05.7]} 10.
O-O {[%clk 0:02:55.7]} 10... Be7 {[%clk 0:03:07]} 11. a4 {[%clk 0:02:56.4]}
11... Qc7 {[%clk 0:03:07.9]} 12. a5 {[%clk 0:02:53.6]} 12... O-O {[%clk
0:03:06.5]} 13. Nb3 {[%clk 0:02:40.9]} 13... Nc5 {[%clk 0:02:59.5]} 14. axb6
{[%clk 0:02:06.9]} 14... Qxb6 {[%clk 0:02:58]} 15. Nxc5 {[%clk 0:01:45.7]} 15...
dxc5 {[%clk 0:02:57.1]} 16. Ra3 {[%clk 0:01:41.1]} 16... Rfd8 {[%clk 0:02:51]}
17. Qb3 {[%clk 0:01:39.7]} 17... Qc7 {[%clk 0:02:43.3]} 18. Qc2 {[%clk 0:01:38]}
18... Bc6 {[%clk 0:02:33.3]} 19. Rfa1 {[%clk 0:01:35.2]} 19... Bb7 {[%clk
0:02:29.1]} 20. f4 {[%clk 0:01:29.3]} 20... Nd7 {[%clk 0:02:25.3]} 21. e5 {[%clk
0:01:18]} 21... Nb6 {[%clk 0:02:21.8]} 22. b3 {[%clk 0:01:12]} 22... Qd7 {[%clk
0:02:11]} 23. Rd1 {[%clk 0:01:10.6]} 23... Qc7 {[%clk 0:02:11.5]} 24. Raa1
{[%clk 0:01:10.1]} 24... Rxd1+ {[%clk 0:02:10.7]} 25. Rxd1 {[%clk 0:01:10.1]}
25... Rd8 {[%clk 0:02:11.9]} 26. Rxd8+ {[%clk 0:01:10.2]} 26... Qxd8 {[%clk
0:02:13.8]} 27. Qd2 {[%clk 0:01:04.6]} 27... Qxd2 {[%clk 0:02:11.7]} 28. Bxd2
{[%clk 0:01:05.1]} 28... Kf8 {[%clk 0:02:10.6]} 29. g3 {[%clk 0:01:05.5]} 29...
Ke8 {[%clk 0:02:11.6]} 30. Kf2 {[%clk 0:01:06.4]} 30... Kd7 {[%clk 0:02:12]} 31.
Be3 {[%clk 0:01:07.1]} 31... Kc7 {[%clk 0:02:09.9]} 32. Bf3 {[%clk 0:01:08.1]}
32... Bxf3 {[%clk 0:02:08.8]} 33. Kxf3 {[%clk 0:01:09.2]} 33... Kc6 {[%clk
0:02:10.2]} 34. Ke4 {[%clk 0:01:09]} 34... g6 {[%clk 0:02:05.6]} 35. Kd3 {[%clk
0:01:09.4]} 35... h5 {[%clk 0:02:05.4]} 36. Ne4 {[%clk 0:01:10]} 36... Nd7
{[%clk 0:02:01.4]} 37. Bd2 {[%clk 0:01:09.9]} 37... f5 {[%clk 0:01:55.4]} 38.
exf6 {[%clk 0:01:09.1]} 38... Nxf6 {[%clk 0:01:56.4]} 39. Ng5 {[%clk 0:01:05]}
39... Kd6 {[%clk 0:01:50.7]} 40. Nf7+ {[%clk 0:01:05]} 40... Kc7 {[%clk
0:01:46.9]} 41. Ne5 {[%clk 0:01:06]} 41... Ng4 {[%clk 0:01:36]} 42. Nxg6 {[%clk
0:01:05.9]} 42... Bf6 {[%clk 0:01:35.4]} 43. h4 {[%clk 0:00:51.6]} 43... Kd7
{[%clk 0:01:34.3]} 44. Be3 {[%clk 0:00:44.8]} 44... Kd6 {[%clk 0:01:24.9]} 45.
Ke4 {[%clk 0:00:41]} 45... Bg7 {[%clk 0:01:21.5]} 46. Bg1 {[%clk 0:00:31.9]}
46... Nf6+ {[%clk 0:01:20.6]} 47. Kf3 {[%clk 0:00:33.1]} 47... Ng4 {[%clk
0:01:21.4]} 48. Be3 {[%clk 0:00:30.9]} 48... Bb2 {[%clk 0:01:16]} 49. Bd2 {[%clk
0:00:31.6]} 49... Bd4 {[%clk 0:01:13.5]} 50. Ba5 {[%clk 0:00:31.6]} 50... Nh2+
{[%clk 0:01:13.1]} 51. Ke4 {[%clk 0:00:31.4]} 51... Ng4 {[%clk 0:01:14.2]} 52.
f5 {[%clk 0:00:26.2]} 52... Nf2+ {[%clk 0:01:11.4]} 53. Kf4 {[%clk 0:00:25.9]}
53... Nh3+ {[%clk 0:00:56.8]} 54. Ke4 {[%clk 0:00:24.7]} 54... Nf2+ {[%clk
0:00:57.8]} 55. Kf3 {[%clk 0:00:25.1]} 55... exf5 {[%clk 0:00:57.7]} 56. Nf4
{[%clk 0:00:26.2]} 56... Ne4 {[%clk 0:00:55.3]} 57. Nxh5 {[%clk 0:00:26.6]}
57... Nd2+ {[%clk 0:00:56.5]} 58. Bxd2 {[%clk 0:00:26.9]} 1-0

[Event "***Titled Tuesday 3|2 Blitz"]
[Site "Chess.com"]
[Date "2017.02.07"]
[Round "7"]
[White "salomez"]
[Black "chorejason"]
[Result "1-0"]
[WhiteElo "2149"]
[BlackElo "2022"]
[TimeControl "180+2"]
[EndTime "14:41:52 PST"]
[Termination "salomez won by resignation"]

1. e4 {[%clk 0:03:02]} 1... c5 {[%clk 0:02:58.7]} 2. Nf3 {[%clk 0:03:01.2]} 2...
d6 {[%clk 0:02:59.2]} 3. d4 {[%clk 0:03:01.8]} 3... cxd4 {[%clk 0:02:58.8]} 4.
Nxd4 {[%clk 0:03:01.3]} 4... Nf6 {[%clk 0:02:58.6]} 5. Nc3 {[%clk 0:03:00.1]}
5... g6 {[%clk 0:03:00]} 6. Be3 {[%clk 0:03:00.3]} 6... Bg7 {[%clk 0:03:01.5]}
7. f3 {[%clk 0:03:01.9]} 7... O-O {[%clk 0:03:02]} 8. Qd2 {[%clk 0:03:03.5]}
8... Nc6 {[%clk 0:03:03.1]} 9. O-O-O {[%clk 0:03:05.1]} 9... d5 {[%clk
0:03:04.3]} 10. Kb1 {[%clk 0:03:05.8]} 10... e5 {[%clk 0:03:05.6]} 11. Nxc6
{[%clk 0:03:00]} 11... bxc6 {[%clk 0:03:04.7]} 12. exd5 {[%clk 0:03:00.9]} 12...
cxd5 {[%clk 0:03:06]} 13. Nxd5 {[%clk 0:03:01.9]} 13... Bf5 {[%clk 0:02:47.3]}
14. Bg5 {[%clk 0:02:48.9]} 14... Rc8 {[%clk 0:02:13.7]} 15. Ne3 {[%clk
0:02:29.7]} 15... Qb6 {[%clk 0:01:55.7]} 16. Nxf5 {[%clk 0:02:21.4]} 16... gxf5
{[%clk 0:01:56.5]} 17. Be2 {[%clk 0:02:10.9]} 17... e4 {[%clk 0:01:25.1]} 18.
Be3 {[%clk 0:02:01.6]} 18... Qb7 {[%clk 0:01:17.5]} 19. Bd4 {[%clk 0:01:57.6]}
19... Rfd8 {[%clk 0:01:18.6]} 20. Qg5 {[%clk 0:01:52.4]} 20... Rxd4 {[%clk
0:00:32.9]} 21. Rxd4 {[%clk 0:01:48.7]} 21... Nd5 {[%clk 0:00:34.1]} 22. Rhd1
{[%clk 0:01:43.5]} 22... Nc3+ {[%clk 0:00:34.7]} 23. Ka1 {[%clk 0:01:44]} 23...
Nxd1 {[%clk 0:00:36.1]} 24. Rd8+ {[%clk 0:01:36.7]} 24... Rxd8 {[%clk
0:00:33.2]} 25. Qxd8+ {[%clk 0:01:37.4]} 25... Bf8 {[%clk 0:00:34.6]} 26. Bxd1
{[%clk 0:01:32.7]} 26... Qb6 {[%clk 0:00:33.5]} 27. Qxb6 {[%clk 0:01:03.6]}
27... axb6 {[%clk 0:00:35.4]} 28. c3 {[%clk 0:01:01.4]} 28... Kg7 {[%clk
0:00:34.7]} 29. Kb1 {[%clk 0:01:02.1]} 29... Kf6 {[%clk 0:00:36]} 30. Kc2 {[%clk
0:01:00.2]} 30... Bd6 {[%clk 0:00:37.2]} 31. h3 {[%clk 0:01:00.2]} 31... Ke5
{[%clk 0:00:38.6]} 32. Kd2 {[%clk 0:00:59.9]} 32... Kf4 {[%clk 0:00:39.8]} 33.
Ke2 {[%clk 0:01:00.9]} 33... Kg3 {[%clk 0:00:41.1]} 34. Kf1 {[%clk 0:01:02]}
34... e3 {[%clk 0:00:32.3]} 35. Be2 {[%clk 0:00:59.4]} 35... Be5 {[%clk
0:00:32.1]} 36. Bd3 {[%clk 0:00:56.7]} 36... Kf4 {[%clk 0:00:31.2]} 37. Ke2
{[%clk 0:00:51.6]} 37... Bd6 {[%clk 0:00:29.9]} 38. b4 {[%clk 0:00:50.5]} 38...
h5 {[%clk 0:00:29.4]} 39. a4 {[%clk 0:00:41.5]} 39... Be5 {[%clk 0:00:28.3]} 40.
c4 {[%clk 0:00:41.2]} 40... Bc3 {[%clk 0:00:29.5]} 41. b5 {[%clk 0:00:41.4]}
41... Bd4 {[%clk 0:00:30.9]} 42. Bc2 {[%clk 0:00:39.2]} 42... Kg3 {[%clk
0:00:32]} 43. Kf1 {[%clk 0:00:19.8]} 43... f4 {[%clk 0:00:31.9]} 44. Bf5 {[%clk
0:00:17.6]} 44... h4 {[%clk 0:00:32.5]} 45. Bc8 {[%clk 0:00:17]} 45... e2+
{[%clk 0:00:31.8]} 46. Kxe2 {[%clk 0:00:17.4]} 46... Kxg2 {[%clk 0:00:33]} 47.
Bg4 {[%clk 0:00:18.1]} 47... Kg3 {[%clk 0:00:34]} 48. Kd3 {[%clk 0:00:19.2]}
48... Kf2 {[%clk 0:00:35]} 49. Kxd4 {[%clk 0:00:19.6]} 1-0

[Event "***Titled Tuesday 3|2 Blitz"]
[Site "Chess.com"]
[Date "2017.02.07"]
[Round "7"]
[White "latigre"]
[Black "olgerts_indricans"]
[Result "0-1"]
[WhiteElo "1739"]
[BlackElo "2309"]
[TimeControl "180+2"]
[EndTime "14:41:54 PST"]
[Termination "olgerts_indricans won by resignation"]

1. e4 {[%clk 0:03:02]} 1... c5 {[%clk 0:03:00.4]} 2. Nc3 {[%clk 0:02:58.3]} 2...
Nc6 {[%clk 0:02:59.3]} 3. f4 {[%clk 0:02:59.6]} 3... e6 {[%clk 0:02:59.7]} 4.
Nf3 {[%clk 0:03:00.3]} 4... d5 {[%clk 0:02:51.2]} 5. Bb5 {[%clk 0:02:56.9]} 5...
Ne7 {[%clk 0:02:43.6]} 6. Ne5 {[%clk 0:02:02.4]} 6... Bd7 {[%clk 0:02:28.4]} 7.
Nxd7 {[%clk 0:01:59.6]} 7... Qxd7 {[%clk 0:02:29.5]} 8. d3 {[%clk 0:01:36.1]}
8... a6 {[%clk 0:02:09.9]} 9. Bxc6 {[%clk 0:01:36.2]} 9... Qxc6 {[%clk
0:02:11.8]} 10. O-O {[%clk 0:01:31.3]} 10... O-O-O {[%clk 0:02:08.7]} 11. Qf3
{[%clk 0:01:29.9]} 11... g6 {[%clk 0:02:00.3]} 12. e5 {[%clk 0:01:15.7]} 12...
h5 {[%clk 0:01:55.1]} 13. Bd2 {[%clk 0:01:15.6]} 13... Nf5 {[%clk 0:01:55.7]}
14. Ne2 {[%clk 0:00:59.5]} 14... Qb6 {[%clk 0:01:36.9]} 15. Kh1 {[%clk
0:00:45.7]} 15... Qxb2 {[%clk 0:01:17.9]} 16. Ba5 {[%clk 0:00:28]} 16... Rd7
{[%clk 0:01:15.1]} 17. Rfb1 {[%clk 0:00:21.7]} 17... Qa3 {[%clk 0:01:13.8]} 18.
Bb6 {[%clk 0:00:19.9]} 18... Be7 {[%clk 0:01:11.5]} 19. Qf2 {[%clk 0:00:19.1]}
19... h4 {[%clk 0:01:01.5]} 20. Rb3 {[%clk 0:00:19.6]} 20... Qa4 {[%clk
0:01:02.1]} 21. Bxc5 {[%clk 0:00:20.8]} 21... Ng3+ {[%clk 0:00:54.8]} 22. Nxg3
{[%clk 0:00:15.2]} 22... hxg3 {[%clk 0:00:55.8]} 23. Qd4 {[%clk 0:00:13.1]}
23... Rxh2+ {[%clk 0:00:51]} 24. Kg1 {[%clk 0:00:13.9]} 24... Qc6 {[%clk
0:00:33.6]} 25. Bb6 {[%clk 0:00:11.7]} 25... Kb8 {[%clk 0:00:29]} 26. Qe3 {[%clk
0:00:12.2]} 26... d4 {[%clk 0:00:28.1]} 27. Qxg3 {[%clk 0:00:13]} 27... Rh8
{[%clk 0:00:24.6]} 28. Rab1 {[%clk 0:00:13.8]} 28... Bh4 {[%clk 0:00:23.8]} 29.
Qf3 {[%clk 0:00:13.1]} 29... Qxf3 {[%clk 0:00:23.1]} 30. gxf3 {[%clk 0:00:15]}
30... Bg3 {[%clk 0:00:24.1]} 31. Kg2 {[%clk 0:00:16.5]} 31... Bxf4 {[%clk
0:00:24.6]} 32. Bc5 {[%clk 0:00:15.4]} 32... Rh2+ {[%clk 0:00:25.8]} 33. Kg1
{[%clk 0:00:15.7]} 33... Bxe5 {[%clk 0:00:26.3]} 34. Rb6 {[%clk 0:00:16.1]}
34... Rxc2 {[%clk 0:00:26.2]} 35. Bf8 {[%clk 0:00:14.1]} 35... Ka7 {[%clk
0:00:22.5]} 36. R6b2 {[%clk 0:00:13.4]} 36... Rc3 {[%clk 0:00:22.6]} 37. Rb3
{[%clk 0:00:12.7]} 37... Rdc7 {[%clk 0:00:23.6]} 38. Kg2 {[%clk 0:00:08.9]}
38... Rc2+ {[%clk 0:00:23.7]} 39. Kh3 {[%clk 0:00:09]} 39... f5 {[%clk
0:00:23.8]} 40. Kh4 {[%clk 0:00:08]} 40... Bf4 {[%clk 0:00:21]} 41. Rxb7+ {[%clk
0:00:03.7]} 41... Rxb7 {[%clk 0:00:22.8]} 42. Bc5+ {[%clk 0:00:04.8]} 42... Rxc5
{[%clk 0:00:22]} 43. Rxb7+ {[%clk 0:00:05]} 43... Kxb7 {[%clk 0:00:23]} 0-1

[Event "***Titled Tuesday 3|2 Blitz"]
[Site "Chess.com"]
[Date "2017.02.07"]
[Round "7"]
[White "Saitama_Hero"]
[Black "aa175"]
[Result "1-0"]
[WhiteElo "2048"]
[BlackElo "1914"]
[TimeControl "180+2"]
[EndTime "14:41:57 PST"]
[Termination "Saitama_Hero won by checkmate"]

1. d4 {[%clk 0:03:02]} 1... d5 {[%clk 0:03:00]} 2. c4 {[%clk 0:02:59.3]} 2...
dxc4 {[%clk 0:03:01.3]} 3. Nf3 {[%clk 0:02:58.9]} 3... c6 {[%clk 0:03:00.6]} 4.
e3 {[%clk 0:03:00.2]} 4... b5 {[%clk 0:02:49.3]} 5. a4 {[%clk 0:03:00.2]} 5...
a6 {[%clk 0:02:50.2]} 6. axb5 {[%clk 0:02:59.3]} 6... cxb5 {[%clk 0:02:50.6]} 7.
b3 {[%clk 0:03:00.7]} 7... cxb3 {[%clk 0:02:26.2]} 8. Bxb5+ {[%clk 0:02:59.2]}
8... Bd7 {[%clk 0:02:21.1]} 9. Bxd7+ {[%clk 0:02:58.1]} 9... Nxd7 {[%clk
0:02:20.8]} 10. Qxb3 {[%clk 0:03:00]} 10... Ngf6 {[%clk 0:02:15.7]} 11. O-O
{[%clk 0:02:58.3]} 11... e6 {[%clk 0:02:14.9]} 12. Nc3 {[%clk 0:02:58.6]} 12...
Bd6 {[%clk 0:02:13.4]} 13. e4 {[%clk 0:02:57.5]} 13... e5 {[%clk 0:02:06.7]} 14.
dxe5 {[%clk 0:02:54.1]} 14... Nxe5 {[%clk 0:01:59.3]} 15. Nxe5 {[%clk
0:02:50.9]} 15... Bxe5 {[%clk 0:01:59.8]} 16. Ba3 {[%clk 0:02:52.3]} 16... Rb8
{[%clk 0:01:37.6]} 17. Qa4+ {[%clk 0:02:35.5]} 17... Qd7 {[%clk 0:01:33.2]} 18.
Rab1 {[%clk 0:01:58]} 18... Rxb1 {[%clk 0:01:16.1]} 19. Rxb1 {[%clk 0:01:59.9]}
19... Qxa4 {[%clk 0:01:01.8]} 20. Nxa4 {[%clk 0:02:01.8]} 20... Kd7 {[%clk
0:01:02.7]} 21. Nc5+ {[%clk 0:01:51.6]} 21... Kc6 {[%clk 0:01:01.4]} 22. Nxa6
{[%clk 0:01:51.2]} 22... Nxe4 {[%clk 0:00:56.8]} 23. Nb4+ {[%clk 0:01:50.3]}
23... Kd7 {[%clk 0:00:53.1]} 24. Re1 {[%clk 0:01:47]} 24... f5 {[%clk 0:00:48]}
25. Nd3 {[%clk 0:01:37.5]} 25... Bd4 {[%clk 0:00:34.4]} 26. Bb2 {[%clk
0:01:38.9]} 26... Bxb2 {[%clk 0:00:32.4]} 27. Nxb2 {[%clk 0:01:40.8]} 27... Rb8
{[%clk 0:00:33.1]} 28. Nc4 {[%clk 0:01:39.1]} 28... Rb4 {[%clk 0:00:21.1]} 29.
Ne3 {[%clk 0:01:36.4]} 29... g6 {[%clk 0:00:20.5]} 30. f3 {[%clk 0:01:36.2]}
30... Nd6 {[%clk 0:00:20.7]} 31. Nd5 {[%clk 0:01:35.6]} 31... Rb5 {[%clk
0:00:20.6]} 32. Nf6+ {[%clk 0:01:36]} 32... Kc6 {[%clk 0:00:21.4]} 33. Nxh7
{[%clk 0:01:37.9]} 33... Rb2 {[%clk 0:00:19.8]} 34. Nf8 {[%clk 0:01:35]} 34...
g5 {[%clk 0:00:19.3]} 35. Ne6 {[%clk 0:01:33.3]} 35... g4 {[%clk 0:00:18]} 36.
fxg4 {[%clk 0:01:28]} 36... fxg4 {[%clk 0:00:19.9]} 37. Nf4 {[%clk 0:01:23.4]}
37... Nf5 {[%clk 0:00:19.4]} 38. Re6+ {[%clk 0:01:20]} 38... Kd7 {[%clk
0:00:14.8]} 39. Re1 {[%clk 0:01:18.5]} 39... Nh4 {[%clk 0:00:14.6]} 40. Re2
{[%clk 0:01:12]} 40... Rxe2 {[%clk 0:00:12]} 41. Nxe2 {[%clk 0:01:13.9]} 41...
Ke6 {[%clk 0:00:13.4]} 42. Kf2 {[%clk 0:01:12]} 42... Kf5 {[%clk 0:00:13.4]} 43.
Kg3 {[%clk 0:01:11.6]} 43... Ng6 {[%clk 0:00:12.6]} 44. Nd4+ {[%clk 0:01:10.2]}
44... Kg5 {[%clk 0:00:13.1]} 45. Ne6+ {[%clk 0:01:10.7]} 45... Kh5 {[%clk
0:00:14.1]} 46. Nf4+ {[%clk 0:01:09.9]} 46... Nxf4 {[%clk 0:00:12.3]} 47. Kxf4
{[%clk 0:01:11.8]} 47... Kh4 {[%clk 0:00:13.4]} 48. Kf5 {[%clk 0:01:05.5]} 48...
g3 {[%clk 0:00:13.3]} 49. h3 {[%clk 0:01:06.7]} 49... Kh5 {[%clk 0:00:13.1]} 50.
Kf4 {[%clk 0:01:08.2]} 50... Kh4 {[%clk 0:00:14.3]} 51. Kf3 {[%clk 0:01:09.7]}
51... Kh5 {[%clk 0:00:16]} 52. Kxg3 {[%clk 0:01:11.2]} 52... Kh6 {[%clk
0:00:17.8]} 53. Kg4 {[%clk 0:01:11.6]} 53... Kh7 {[%clk 0:00:19.7]} 54. h4
{[%clk 0:01:11.3]} 54... Kh8 {[%clk 0:00:21.6]} 55. h5 {[%clk 0:01:13.2]} 55...
Kg8 {[%clk 0:00:23.5]} 56. Kg5 {[%clk 0:01:13.2]} 56... Kh8 {[%clk 0:00:25.4]}
57. g4 {[%clk 0:01:12.9]} 57... Kg8 {[%clk 0:00:27.3]} 58. Kg6 {[%clk 0:01:13]}
58... Kh8 {[%clk 0:00:29.2]} 59. g5 {[%clk 0:01:13.4]} 59... Kg8 {[%clk
0:00:31.1]} 60. h6 {[%clk 0:01:14.6]} 60... Kh8 {[%clk 0:00:33]} 61. Kf7 {[%clk
0:01:14.5]} 61... Kh7 {[%clk 0:00:33.5]} 62. g6+ {[%clk 0:01:16.2]} 62... Kxh6
{[%clk 0:00:34.9]} 63. g7 {[%clk 0:01:18]} 63... Kg5 {[%clk 0:00:36.8]} 64.
g8=Q+ {[%clk 0:01:18.9]} 64... Kf4 {[%clk 0:00:38.7]} 65. Qg6 {[%clk 0:01:18.8]}
65... Ke3 {[%clk 0:00:39.5]} 66. Qg4 {[%clk 0:01:19.1]} 66... Kd2 {[%clk
0:00:41.4]} 67. Qf3 {[%clk 0:01:19.3]} 67... Kc1 {[%clk 0:00:43.3]} 68. Qe2
{[%clk 0:01:19.9]} 68... Kb1 {[%clk 0:00:44.2]} 69. Ke6 {[%clk 0:01:21.3]} 69...
Ka1 {[%clk 0:00:46.1]} 70. Kd5 {[%clk 0:01:23.1]} 70... Kb1 {[%clk 0:00:48]} 71.
Kc4 {[%clk 0:01:24.3]} 71... Ka1 {[%clk 0:00:49.9]} 72. Kb3 {[%clk 0:01:25.2]}
72... Kb1 {[%clk 0:00:51.8]} 73. Qd1# {[%clk 0:01:25.5]} 1-0

[Event "***Titled Tuesday 3|2 Blitz"]
[Site "Chess.com"]
[Date "2017.02.07"]
[Round "7"]
[White "Generalas"]
[Black "Cecile_Haussernot"]
[Result "1-0"]
[WhiteElo "2192"]
[BlackElo "2254"]
[TimeControl "180+2"]
[EndTime "14:42:00 PST"]
[Termination "Generalas won on time"]

1. Nf3 {[%clk 0:03:00.9]} 1... c5 {[%clk 0:02:57.6]} 2. c4 {[%clk 0:03:01]} 2...
e6 {[%clk 0:02:51.1]} 3. g3 {[%clk 0:02:59]} 3... d5 {[%clk 0:02:45.3]} 4. Bg2
{[%clk 0:02:59.9]} 4... Nc6 {[%clk 0:02:43.2]} 5. O-O {[%clk 0:03:00]} 5... Nf6
{[%clk 0:02:41.5]} 6. cxd5 {[%clk 0:02:59.7]} 6... exd5 {[%clk 0:02:41.9]} 7. d4
{[%clk 0:03:00.5]} 7... Be7 {[%clk 0:02:37]} 8. Nc3 {[%clk 0:03:00.2]} 8... O-O
{[%clk 0:02:36.1]} 9. b3 {[%clk 0:02:57]} 9... Bg4 {[%clk 0:02:24.4]} 10. dxc5
{[%clk 0:02:55.6]} 10... d4 {[%clk 0:02:21]} 11. Na4 {[%clk 0:02:54.6]} 11... b5
{[%clk 0:02:13.7]} 12. cxb6 {[%clk 0:02:51.9]} 12... axb6 {[%clk 0:02:14.9]} 13.
h3 {[%clk 0:02:06.6]} 13... Bf5 {[%clk 0:02:11.8]} 14. Nh4 {[%clk 0:02:05.1]}
14... Bd7 {[%clk 0:02:07.4]} 15. Nb2 {[%clk 0:01:54.8]} 15... Bb4 {[%clk
0:02:02.4]} 16. Bd2 {[%clk 0:01:53.1]} 16... Bc3 {[%clk 0:01:44.6]} 17. Bxc3
{[%clk 0:01:50.9]} 17... dxc3 {[%clk 0:01:46.1]} 18. Na4 {[%clk 0:01:44.9]}
18... c2 {[%clk 0:01:34.3]} 19. Qxc2 {[%clk 0:01:44.2]} 19... Nd4 {[%clk
0:01:35.8]} 20. Qd3 {[%clk 0:01:42.9]} 20... Bb5 {[%clk 0:01:36.9]} 21. Qe3
{[%clk 0:01:24.7]} 21... Re8 {[%clk 0:01:35.4]} 22. Qg5 {[%clk 0:01:18.2]} 22...
h6 {[%clk 0:01:32.2]} 23. Qxb5 {[%clk 0:00:47.4]} 23... Nxb5 {[%clk 0:01:32.7]}
24. Bxa8 {[%clk 0:00:48.3]} 24... Qxa8 {[%clk 0:01:33]} 25. e3 {[%clk
0:00:49.4]} 25... Ne4 {[%clk 0:01:31.5]} 26. Rac1 {[%clk 0:00:42.1]} 26... Nxg3
{[%clk 0:01:30]} 27. fxg3 {[%clk 0:00:41.3]} 27... Rxe3 {[%clk 0:01:31.5]} 28.
Nxb6 {[%clk 0:00:32.9]} 28... Rxg3+ {[%clk 0:01:31]} 29. Kh2 {[%clk 0:00:32]}
29... Qxa2+ {[%clk 0:01:13.7]} 30. Kxg3 {[%clk 0:00:31]} 30... Qxb3+ {[%clk
0:01:15.2]} 31. Rf3 {[%clk 0:00:29.8]} 31... Qe6 {[%clk 0:01:16.6]} 32. Nc4
{[%clk 0:00:21.5]} 32... Nd4 {[%clk 0:01:17.5]} 33. Re3 {[%clk 0:00:20.1]} 33...
Qf6 {[%clk 0:01:19]} 34. Ne5 {[%clk 0:00:18]} 34... Qg5+ {[%clk 0:01:19.6]} 35.
Ng4 {[%clk 0:00:17.1]} 35... f5 {[%clk 0:01:18.9]} 36. Rc8+ {[%clk 0:00:16.8]}
36... Kh7 {[%clk 0:01:19.4]} 37. Ree8 {[%clk 0:00:17.7]} 37... f4+ {[%clk
0:01:15.5]} 38. Kf2 {[%clk 0:00:17.1]} 38... Qxh4+ {[%clk 0:01:16.6]} 39. Kf1
{[%clk 0:00:15.2]} 39... Qxh3+ {[%clk 0:01:17.3]} 40. Kf2 {[%clk 0:00:15.7]}
40... Qg3+ {[%clk 0:01:17.4]} 41. Kf1 {[%clk 0:00:16.1]} 41... Qxg4 {[%clk
0:01:19]} 42. Rh8+ {[%clk 0:00:13.3]} 1-0